[Event "2nd Serbia Open Masters 2022"]
[Site "Novi Sad"]
[Date "2022.07.02"]
[Round "5.31"]
[White "Suleymanli, Aydin"]
[Black "Maltsevskaya, Aleksandra"]
[Result "1-0"]
[ECO "D37"]
[WhiteElo "2537"]
[BlackElo "2396"]
[Annotator "TA"]
[PlyCount "95"]
[EventDate "2022.06.28"]
[EventType "swiss"]
[EventCountry "SRB"]
[SourceTitle "playchess.com"]
[Source "ChessBase"]
[SourceQuality "1"]
[TimeControl "40/5400+30:900+30"]

{[%evp 9,95,29,29,29,31,6,65,50,79,88,78,91,150,156,175,170,170,161,170,153,154,154,152,147,149,130,130,129,121,129,136,131,129,122,137,131,135,134,125,118,122,126,129,120,123,120,142,145,156,152,187,162,167,166,179,168,260,274,256,260,274,229,225,237,237,235,281,235,236,229,206,201,260,259,260,207,287,287,287,287,341,335,352,337,362,368,364,354]} 1. d4 {[%emt 0:00:12]} d5 {[%emt 0:00:11]} 2. c4 {[%emt 0:00:13]} e6 {[%emt 0:00:09]} 3. Nc3 {[%emt 0:00:13]} Nf6 {[%emt 0:00:12]} 4. Nf3 {[%emt 0:00:28]} a6 {[%emt 0:00:52]} 5. cxd5 {[%emt 0:00:33]} exd5 {[%emt 0:00:07]} 6. Bg5 {[%emt 0:00:05] D37: Queen's Gambit Declined: 5 Bf4.} Be6 {[%emt 0:00:12]} 7. Qb3 {[%emt 0:00:43]} Ra7 {[%emt 0:00:29]} (7... b5 $11) 8. e4 $14 {[%emt 0:01:05] [#] White is slightly better.} Be7 $146 {[%emt 0:23:40]} ({Predecessor:} 8... dxe4 9. d5 exf3 10. dxe6 fxe6 11. Be3 c5 12. Qxe6+ Qe7 13. Qc8+ Qd8 14. Qe6+ Qe7 15. Qc8+ Qd8 16. Qe6+ {½-½ (16) Yoo,C (2455)-Lazavik,D (2436) Tornelo INT 2020}) 9. Bxf6 {[%emt 0:01:33]} Bxf6 {[%emt 0:00:17]} 10. exd5 {[%emt 0:00:42]} Bg4 {[%emt 0:01:04]} (10... Bf5 $142) 11. Ne5 $16 {[%emt 0:02:52]} Qe7 {[%emt 0:31:12]} 12. d6 {[%emt 0:00:55]} cxd6 {[%emt 0:01:20]} 13. Nd5 {[%emt 0:00:51]} Be6 {[%emt 0:00:58] [#] Strongly threatening ...Bxd5.} 14. Qa4+ $1 {[%emt 0:00:32]} ({And not} 14. Nxe7 Bxb3 15. Nc8 (15. axb3 Kxe7 16. Nf3 Nc6 $15) 15... Be6 16. Nxa7 (16. Nxd6+ Ke7 $11) 16... dxe5 $11) 14... Bd7 {[%emt 0:02:03] [#]} 15. Qa3 {[%emt 0:00:35]} Qd8 {[%emt 0:01:03]} 16. Qxd6 {[%emt 0:00:15]} b5 {[%emt 0:10:39]} 17. Rc1 {[%emt 0:00:10] 0x0.001e6d0a80acdp-1022s more active pieces.} Be6 {[%emt 0:02:37]} 18. Nc7+ {[%emt 0:01:01]} Rxc7 {[%emt 0:00:07]} 19. Qxc7 {[%emt 0:00:07]} O-O {[%emt 0:00:10] [#]} 20. Qxd8 {[%emt 0:01:45]} Rxd8 {[%emt 0:00:06]} 21. Rd1 {[%emt 0:02:55]} Bxa2 {[%emt 0:01:44]} 22. Be2 {[%emt 0:00:08]} Be7 {[%emt 0:02:58]} 23. O-O {[%emt 0:01:46]} f6 {[%emt 0:00:05]} 24. Nf3 {[%emt 0:00:05]} Nc6 {[%emt 0:00:28]} 25. Ra1 {[%emt 0:03:05]} Nb4 {[%emt 0:00:10]} 26. Rfd1 {[%emt 0:01:52]} Kf8 {[%emt 0:00:48]} 27. Rac1 {[%emt 0:01:20]} Bd6 {[%emt 0:01:00]} 28. g3 {[%emt 0:00:35]} Bb3 {[%emt 0:03:38]} 29. Rd2 {[%emt 0:01:44]} Bd5 {[%emt 0:03:23]} 30. Nh4 {[%emt 0:01:12]} Na2 {[%emt 0:03:15]} 31. Ra1 {[%emt 0:00:09]} Bb4 {[%emt 0:00:47]} 32. Rd3 {[%emt 0:04:05]} Rc8 {[%emt 0:03:27]} (32... g6 $142 33. Ng2 Bf7) 33. Bf3 $18 {[%emt 0:02:18]} Bc4 {[%emt 0:00:06]} 34. Re3 {[%emt 0:00:23] b3 is the strong threat.} Bd2 {[%emt 0:07:07]} 35. b3 {[%emt 0:06:31]} Bxe3 {[%emt 0:00:29]} 36. bxc4 {[%emt 0:00:02]} bxc4 {[%emt 0:00:57][%cal Oc4c3]} 37. Rxa2 {[%emt 0:00:16]} c3 {[%emt 0:00:37]} 38. Rc2 {[%emt 0:00:07]} ({Stronger than} 38. fxe3 c2 39. Rxc2 Rxc2 $11) 38... Bxd4 {[%emt 0:00:28]} 39. Bb7 {[%emt 0:00:19][%csl LRa6,LRc8]} Rb8 {[%emt 0:00:32]} 40. Bxa6 {[%emt 0:00:00]} Rb3 {[%emt 0:00:00]} 41. Nf3 {[%emt 0:00:27]} Bc5 {[%emt 0:00:42]} 42. Bc4 {[%emt 0:00:17]} Ra3 {[%emt 0:00:36]} 43. Kg2 {[%emt 0:00:05]} Ke7 {[%emt 0:00:05]} 44. Nh4 {[%emt 0:00:18]} Kd7 {[%emt 0:00:35]} 45. Bg8 {[%emt 0:00:12]} h6 {[%emt 0:00:08]} 46. Nf5 {[%emt 0:00:30]} Bf8 {[%emt 0:00:10]} 47. Nd4 {[%emt 0:00:16]} Bb4 {[%emt 0:00:16]} 48. Nb5 {[%emt 0:00:10] Black did not feel at home in the position after the opening.  Weighted Error Value: White=0.06 (flawless) /Black=0.19 (very precise)} 1-0

[Event "2nd Serbia Open Masters 2022"]
[Site "Novi Sad"]
[Date "2022.07.02"]
[Round "5.32"]
[White "Tsolakidou, Stavroula"]
[Black "Petkov, Momchil"]
[Result "1-0"]
[ECO "B90"]
[WhiteElo "2358"]
[BlackElo "2494"]
[Annotator "TA"]
[PlyCount "81"]
[EventDate "2022.06.28"]
[EventType "swiss"]
[EventCountry "SRB"]
[SourceTitle "playchess.com"]
[Source "ChessBase"]
[SourceQuality "1"]
[TimeControl "40/5400+30:900+30"]

{[%evp 11,81,11,26,0,2,-7,-8,-16,-9,-27,0,0,0,0,-6,-11,0,0,14,0,0,13,84,58,66,86,128,116,166,76,83,79,124,114,116,98,95,92,145,56,48,25,64,55,57,67,186,197,434,429,516,408,416,398,680,574,1629,801,801,801,795,786,692,552,1122,1106,1014,894,29973,29974,5306,810]} 1. e4 {[%emt 0:02:46]} c5 {[%emt 0:00:19]} 2. Nf3 {[%emt 0:00:08]} d6 {[%emt 0:00:23]} 3. d4 {[%emt 0:00:15]} cxd4 {[%emt 0:00:14]} 4. Nxd4 {[%emt 0:00:07]} Nf6 {[%emt 0:00:13]} 5. Nc3 {[%emt 0:00:08]} a6 {[%emt 0:00:10]} 6. h3 {[%emt 0:00:22]} e5 {[%emt 0:00:56]} 7. Nf3 {[%emt 0:00:29] B90: Sicilian Najdorf: Unusual White 6th moves, 6 Be3 Ng4 and 6 Be3 e5.} Qc7 {[%emt 0:06:17]} 8. g4 {[%emt 0:05:28]} h6 {[%emt 0:00:25]} 9. g5 {[%emt 0:01:09] The position is equal.} hxg5 {[%emt 0:00:10]} 10. Nxg5 {[%emt 0:00:07]} b5 {[%emt 0:12:43]} 11. Be3 $1 {[%emt 0:00:17] [#]} Bb7 $146 {[%emt 0:00:47]} ({Predecessor:} 11... Nc6 12. Qd2 Qa5 13. Bg2 Be7 14. O-O b4 15. Nd5 Nxd5 16. exd5 Nd8 17. a3 Rb8 {0-1 (27) Maschietti,G-Clark,S (1569) ICCF email 2017}) 12. Qd2 {[%emt 0:00:54]} Nbd7 {[%emt 0:03:21]} 13. O-O-O {[%emt 0:00:58]} Rc8 {[%emt 0:05:46]} 14. Kb1 {[%emt 0:04:00]} Rh4 {[%emt 0:08:04][%cal Rh4e4]} 15. f4 {[%emt 0:26:06]} exf4 {[%emt 0:02:55]} (15... b4 $5 16. Nd5 Nxd5 17. exd5 Be7 18. fxe5 Nxe5 $14) 16. Bf2 {[%emt 0:00:05]} Rh5 {[%emt 0:02:27]} (16... Rh6 $11 {keeps the balance.}) 17. h4 $1 $16 {[%emt 0:00:44]} ({But not} 17. Qxf4 $2 b4 18. h4 bxc3 $19) 17... Ne5 {[%emt 0:09:11]} 18. Bh3 {[%emt 0:08:04]} Rd8 {[%emt 0:12:02][%cal Oh5g5]} 19. Qxf4 {[%emt 0:01:45]} Be7 {[%emt 0:00:18] [#]} (19... Bc8 $16) 20. Nd5 {[%emt 0:17:55]} (20. Be6 $1 $18 {[%mdl 512]}) 20... Nxd5 {[%emt 0:02:04]} 21. exd5 {[%emt 0:00:06]} Bc8 {[%emt 0:02:59] [#]} 22. Bg2 $1 {[%emt 0:01:49] White is more active.} Bf6 {[%emt 0:06:25]} 23. Rde1 {[%emt 0:06:03]} Kf8 {[%emt 0:05:05]} 24. Bd4 {[%emt 0:01:35]} Rh6 {[%emt 0:06:03] [#]} ({Black should play} 24... Qd7) 25. h5 {[%emt 0:07:23]} ({Better is} 25. Be4 $1 $16) 25... Qc4 {[%emt 0:06:49][%cal Oe5d3] Hoping for ...Nd3!} 26. Rd1 {[%emt 0:01:11] Inhibits Nd3. Be4 is the strong threat.} Bg4 {[%emt 0:07:24]} 27. b3 {[%emt 0:14:06]} Qc8 {[%emt 0:00:28]} 28. Rdf1 {[%emt 0:01:43]} Bxh5 {[%emt 0:00:48]} (28... Be2 $14) 29. Ne4 {[%emt 0:01:52][%cal Bg5e4,Be4g3,Bg3f5][%mdl 32]} Qc7 $2 {[%emt 0:02:58]} (29... Qg4) 30. Qd2 $18 {[%emt 0:03:16]} ({Not} 30. Nxf6 Rxf6 31. Qg5 Rg6 $18) 30... Be7 {[%emt 0:00:41]} 31. Ng3 {[%emt 0:00:05]} Bg6 {[%emt 0:00:48]} 32. Rxh6 {[%emt 0:00:09]} gxh6 {[%emt 0:00:08]} (32... Qxc2+ 33. Qxc2 Bxc2+ 34. Kxc2 gxh6) 33. Qxh6+ {[%emt 0:00:23]} Kg8 {[%emt 0:00:42]} 34. Be4 {[%emt 0:01:12]} (34. Ne4 $142) 34... Bf8 {[%emt 0:00:09]} 35. Qh3 {[%emt 0:01:09] Black must now prevent Bxe5.} Qe7 {[%emt 0:01:29]} 36. Nf5 {[%emt 0:00:46]} Qg5 {[%emt 0:00:03]} 37. Rh1 {[%emt 0:00:48][%csl Gh1][%cal Rh3h8]} Bg7 {[%emt 0:00:01] Inhibits Qh8+.} 38. Nxg7 {[%emt 0:01:00]} Kxg7 {[%emt 0:00:02]} 39. Be3 {[%emt 0:00:11] A strong pair of Bishops.} Qg4 {[%emt 0:01:53]} 40. Qh6+ {[%emt 0:00:00]} Kf6 {[%emt 0:00:00] [#]} 41. Bg5+ $1 {[%emt 0:00:42][%mdl 512] Weighted Error Value: White=0.23 (precise) /Black=0.55} 1-0

[Event "2nd Serbia Open Masters 2022"]
[Site "Novi Sad"]
[Date "2022.07.02"]
[Round "5.33"]
[White "Vardaan Nagpal"]
[Black "Stremavicius, Titas"]
[Result "0-1"]
[ECO "D02"]
[WhiteElo "2357"]
[BlackElo "2508"]
[Annotator "TA"]
[PlyCount "84"]
[EventDate "2022.06.28"]
[EventType "swiss"]
[EventCountry "SRB"]
[SourceTitle "playchess.com"]
[Source "ChessBase"]
[SourceQuality "1"]
[TimeControl "40/5400+30:900+30"]

{[%evp 9,84,0,14,22,17,16,35,36,37,29,33,24,45,29,31,13,46,0,0,0,0,0,0,0,0,0,0,0,0,0,41,41,59,64,57,20,43,68,100,0,1,3,32,43,56,50,39,56,48,-181,-189,-329,-312,-298,-290,-256,-154,-131,-74,-268,0,-21,0,0,0,-392,-387,-480,-453,-700,-627,-29977,-29978,-29980,-29981,-29990,-29980]} 1. d4 {[%emt 0:00:02]} d5 {[%emt 0:00:20]} 2. Nf3 {[%emt 0:00:06]} Nf6 {[%emt 0:00:15]} 3. Bf4 {[%emt 0:00:06]} c5 {[%emt 0:00:10]} 4. e3 {[%emt 0:00:02]} Nc6 {[%emt 0:00:09]} 5. Nbd2 {[%emt 0:00:03]} Nh5 {[%emt 0:00:12]} 6. dxc5 {[%emt 0:00:29] D02: 1 d4 d5 2 Nf3 sidelines, including 2...Nf6 3 g3 and 2...Nf6 3 Bf4.} Nxf4 {[%emt 0:00:09]} 7. exf4 {[%emt 0:00:02]} g6 {[%emt 0:00:14]} 8. c3 {[%emt 0:00:37] White is slightly better.} Bg7 {[%emt 0:01:37]} 9. Nb3 {[%emt 0:05:52] Prevents d4.} O-O {[%emt 0:01:41]} 10. Bb5 {[%emt 0:03:02] [#]} a5 $146 {[%emt 0:01:11]} ({Predecessor:} 10... Bg4 11. h3 Bxf3 12. Qxf3 e6 13. O-O Ne7 14. a4 a6 15. Be2 a5 16. Bb5 b6 {½-½ (33) Puranik,A (2610)-Swapnil,S (2494) Jalgaon 2022}) 11. a4 {[%emt 0:08:38]} Qc7 {[%emt 0:06:29]} 12. g3 {[%emt 0:01:33]} Bh3 {[%emt 0:08:22]} 13. Bf1 {[%emt 0:06:14]} (13. Ng5 $1 $14 {feels stronger.} Bf5 14. O-O (14. Qxd5 h6 $17)) 13... Bg4 $11 {[%emt 0:01:17][%cal Od5d4]} 14. Be2 {[%emt 0:00:38]} (14. Qxd5 Rad8 15. Qe4 e5 $17) 14... b6 {[%emt 0:08:05]} 15. cxb6 {[%emt 0:08:39]} Qxb6 {[%emt 0:00:08]} 16. O-O {[%emt 0:00:13]} Rab8 {[%emt 0:02:06]} 17. Nfd2 {[%emt 0:00:12]} Bh3 {[%emt 0:11:18]} 18. Re1 {[%emt 0:00:07]} d4 {[%emt 0:00:48]} 19. Rc1 {[%emt 0:00:39]} Be6 {[%emt 0:15:51][%cal Re6b3] A strong pair of Bishops.} 20. Bb5 {[%emt 0:03:33][%cal Oe1e6] Hoping for Rxe6!} dxc3 {[%emt 0:04:06]} 21. bxc3 {[%emt 0:00:13][%cal Oe1e6,Bb2c3,Bc3c4,Bc4b5][%mdl 32]} Na7 $1 {[%emt 0:00:29]} 22. c4 {[%emt 0:06:30]} (22. Nc4 Qc7 23. Na3 Rfd8 $11) 22... Nxb5 {[%emt 0:00:16]} 23. cxb5 {[%emt 0:00:09]} Rbc8 {[%emt 0:00:05] Prevents Nc4.} 24. Qe2 {[%emt 0:14:49]} (24. Qf3 $1 $16) 24... Bc3 {[%emt 0:02:49]} 25. Red1 {[%emt 0:00:08]} Rfd8 {[%emt 0:05:49]} (25... Bxd2 $5 26. Nxd2 Rxc1 27. Rxc1 Qd4 $14) 26. Ne4 {[%emt 0:06:52]} Bb4 {[%emt 0:06:05]} 27. Rxd8+ {[%emt 0:03:26]} Qxd8 {[%emt 0:00:13]} 28. Rxc8 {[%emt 0:01:19]} Qxc8 {[%emt 0:00:06]} 29. Nd4 {[%emt 0:00:15]} (29. Qd3 $1 $14 {stays ahead.}) 29... Bd5 $19 {[%emt 0:01:33][%mdl 1024] aiming for ...Qc1+. Black has strong compensation.} 30. f3 {[%emt 0:09:24]} (30. Nc6 {was called for.} Bxc6 31. bxc6 Qxc6 32. Qd3) 30... Qc1+ $1 {[%emt 0:02:29]} 31. Qf1 {[%emt 0:00:40]} ({Much weaker is} 31. Kg2 Bc4 32. Qf2 f5) 31... Qe3+ {[%emt 0:04:22]} 32. Qf2 {[%emt 0:00:03]} Qa3 {[%emt 0:00:06]} 33. Kg2 {[%emt 0:05:37] [#]} Qxa4 {[%emt 0:00:55]} (33... f5 $142 $1 34. Nc2 Qxa4 35. Nxb4 Qxb4) 34. Qe2 $2 {[%emt 0:00:37] [#]} (34. Qc2 $17 {was the only defense.} Qxc2+ 35. Nxc2) 34... Qa1 $2 {[%emt 0:01:44]} (34... f5 $1 $19 {[%cal Rf5e4]} 35. Nf2 Bc5) 35. Nc6 $11 {[%emt 0:00:42]} Qc1 {[%emt 0:01:01] ...Bc4 is the strong threat.} (35... f5 $5 {[%cal Rf5e4]} 36. Nf2 Qa3 $11) 36. Nxb4 {[%emt 0:07:23]} axb4 {[%emt 0:00:16][%mdl 4096] Endgame KQB-KQN} 37. Nd2 {[%emt 0:00:08][%mdl 8192] Prevents Bc4.} (37. Qd3 $11 {and White is okay.} Bc4 38. Qd8+ Kg7 39. Qd4+ (39. Kh3 $2 Qf1+ 40. Kh4 Qxf3 $19) 39... f6 40. Nd2 Bxb5 41. Qxb4) 37... Qc2 {[%emt 0:02:00]} 38. Kf2 {[%emt 0:01:40]} b3 {[%emt 0:00:29]} 39. Ke1 {[%emt 0:00:17]} (39. b6 $142) 39... b2 $19 {[%emt 0:00:50]} 40. Qd1 {[%emt 0:00:00]} Qc1 {[%emt 0:00:00] Black mates.} 41. Ke2 {[%emt 0:00:38]} b1=Q {[%emt 0:00:37]} 42. Nxb1 {[%emt 0:00:08] [#]} Bxf3+ $1 {[%emt 0:00:02][%mdl 512] Weighted Error Value: White=0.72/Black=0.22 (precise)} 0-1

[Event "2nd Serbia Open Masters 2022"]
[Site "Novi Sad"]
[Date "2022.07.02"]
[Round "5.34"]
[White "Zlatanovic, Boroljub"]
[Black "Sadikhov, Ulvi"]
[Result "0-1"]
[ECO "D00"]
[WhiteElo "2341"]
[BlackElo "2491"]
[Annotator "TA"]
[PlyCount "98"]
[EventDate "2022.06.28"]
[EventType "swiss"]
[EventCountry "SRB"]
[SourceTitle "playchess.com"]
[Source "ChessBase"]
[SourceQuality "1"]
[TimeControl "40/5400+30:900+30"]

{[%evp 9,98,0,15,16,23,22,27,-1,15,-21,-2,-9,-10,-35,-36,-27,-35,-41,-43,-34,-28,-29,-37,-138,-44,-9,12,-108,-108,-131,-78,-188,-23,-24,-36,-43,15,19,55,22,18,17,17,17,22,-131,-125,-118,-105,-124,-127,-131,-138,-123,-126,-136,-126,-218,-182,-180,-172,-170,-179,-186,-177,-185,-127,-140,-149,-150,-130,-143,-117,-157,-67,-75,-113,-83,-72,-72,-79,-29965,-29964,-29974,-29974,-29968,-29972,-29978,-29978,-29977,-6087]} 1. d4 {[%emt 0:00:03]} Nf6 {[%emt 0:02:03]} 2. Nc3 {[%emt 0:00:21]} d5 {[%emt 0:00:11]} 3. Bf4 {[%emt 0:00:32]} a6 {[%emt 0:00:34]} 4. e3 {[%emt 0:00:51][%cal Be2e3,Be3e4,Be4d5][%mdl 32]} e6 {[%emt 0:00:55]} 5. g4 {[%emt 0:02:17][%cal Bg2g4,Bg4g5][%mdl 32]} c5 {[%emt 0:09:28]} 6. g5 $1 {[%emt 0:06:59] D00: 1 d4 d5: Unusual lines.} Nfd7 {[%emt 0:00:26]} 7. Nf3 {[%emt 0:02:36]} Nc6 {[%emt 0:00:39]} 8. Bg2 {[%emt 0:02:59] White has an edge.} Be7 {[%emt 0:14:56] [#]} 9. e4 $146 {[%emt 0:10:20]} ({Predecessor:} 9. h4 O-O 10. a3 b5 11. h5 Bb7 12. Bh3 cxd4 13. exd4 e5 14. dxe5 d4 15. Ne4 Ncxe5 16. Nxe5 Nxe5 17. Bxe5 Bxe4 {0-1 (26) Agrest,E (2568)-Yilmazyerli,M (2413) Tornelo INT 2021}) 9... Nxd4 {[%emt 0:07:42]} 10. exd5 {[%emt 0:09:59]} e5 {[%emt 0:11:24]} 11. Be3 {[%emt 0:14:46]} O-O {[%emt 0:03:28]} 12. Ne4 {[%emt 0:06:21]} f5 {[%emt 0:04:09]} 13. d6 $1 {[%emt 0:04:52]} fxe4 {[%emt 0:05:08]} 14. dxe7 {[%emt 0:00:20]} Qxe7 {[%emt 0:00:37]} 15. Nd2 {[%emt 0:00:19]} Nb6 {[%emt 0:01:21] Threatens to win with ...Bf5.} 16. Nxe4 {[%emt 0:03:12]} (16. c3 $1 $15) 16... Nd5 {[%emt 0:08:19]} ({Black should try} 16... Bf5 $1 $17 {Hoping for ...Rad8.} 17. O-O Rad8) 17. O-O $15 {[%emt 0:06:30]} Bf5 {[%emt 0:10:34] Strongly threatening ...Nf4.} 18. Ng3 {[%emt 0:05:12]} (18. c3 $1 $11 {was the only way to keep the balance.}) 18... Nf4 $1 $17 {[%emt 0:01:35]} 19. c3 {[%emt 0:05:33]} Nde6 {[%emt 0:00:45] 0x0.00207cfb9d8ddp-1022s more active pieces. The white rooks are badly placed.} (19... Nxg2 $142 20. Nxf5 Nxf5 21. Qd5+ Kh8 22. Qxg2 Nh4) 20. h4 {[%emt 0:00:55]} (20. Nxf5 $17 Rxf5 21. Be4 Rxg5+ 22. Kh1) 20... Rad8 $2 {[%emt 0:00:52]} (20... Bd3 $19 21. Re1 Nxg2 22. Kxg2 Qd7) 21. Nxf5 $11 {[%emt 0:00:56]} Rxf5 {[%emt 0:00:11]} 22. Qg4 {[%emt 0:00:08]} Rff8 {[%emt 0:04:19]} (22... Rdf8 $15) 23. Be4 {[%emt 0:01:03]} Kh8 {[%emt 0:02:20]} 24. Rad1 {[%emt 0:01:23]} h5 {[%emt 0:00:39]} 25. Qf3 {[%emt 0:01:58]} Nxg5 $1 {[%emt 0:02:39]} 26. hxg5 {[%emt 0:00:48]} Qxg5+ {[%emt 0:00:09] [#]} 27. Qg3 $2 {[%emt 0:04:00]} (27. Qg2 $1 $11 Ne2+ 28. Kh2 Qh4+ 29. Qh3 Qxe4 30. Qxh5+ Qh7 31. Qxh7+ Kxh7 32. Bxc5) 27... Ne2+ $17 {[%emt 0:00:31][%cal Bf4e2,Be2g3,Bg3e4][%mdl 96] Pin, Double Attack} 28. Kg2 {[%emt 0:00:15]} Nxg3 {[%emt 0:00:11][%mdl 64] Pin. Chess con chili.} 29. Bxg5 {[%emt 0:00:13] This bishop pair is nice.} Rxd1 {[%emt 0:00:06]} 30. Rxd1 {[%emt 0:00:10]} Nxe4 {[%emt 0:00:08][%mdl 4096] Endgame KRB-KRN} 31. Be3 {[%emt 0:00:06]} h4 {[%emt 0:00:18][%cal Oh4h3]} 32. Rd5 {[%emt 0:00:48][%csl LRc5,LRe5]} Rf5 {[%emt 0:01:27]} 33. f4 {[%emt 0:01:26]} (33. Kh3 $17) 33... Kg8 {[%emt 0:04:42]} ({Don't take} 33... exf4 34. Rxf5 fxe3 35. Rh5+ Kg8 36. Rxh4 $16) 34. Kf3 {[%emt 0:03:44]} Nf6 {[%emt 0:00:06]} 35. Rxe5 {[%emt 0:00:14]} Rxe5 {[%emt 0:00:05]} 36. fxe5 $19 {[%emt 0:00:04] KB-KN} Nd7 {[%emt 0:00:16]} 37. e6 {[%emt 0:00:22] [#]} Ne5+ {[%emt 0:00:34]} 38. Kf4 {[%emt 0:01:17] [#]} h3 $1 {[%emt 0:00:23][%cal Bh4h3,Bh3h2][%mdl 32]} 39. Kg3 {[%emt 0:00:34]} ({But not} 39. Kxe5 $2 h2 40. Bxc5 (40. e7 $2 Kf7 $19) 40... h1=Q $19) 39... h2 $1 {[%emt 0:01:03]} 40. Kg2 {[%emt 0:00:00]} c4 {[%emt 0:00:00]} 41. b3 {[%emt 0:05:33]} b5 {[%emt 0:02:36]} (41... cxb3 $17 42. axb3 {[#]} Nf3 $1) 42. bxc4 $1 $15 {[%emt 0:01:23]} bxc4 {[%emt 0:00:07]} 43. Bc5 {[%emt 0:01:20] [#]} Nf3 $1 {[%emt 0:01:07]} 44. Be7 {[%emt 0:03:05]} (44. Bd6 g5) 44... g5 {[%emt 0:00:51][%cal Bg7g5,Bg5g4,Bg4g3][%mdl 32]} 45. Bf6 $2 {[%emt 0:01:19][%mdl 8192] [#] This costs White the game.} (45. Bc5 $17) 45... Kf8 $1 {[%emt 0:05:12] Black mates.} 46. a4 {[%emt 0:00:09] [#]} (46. Bd8 Ke8) 46... Ke8 $1 {[%emt 0:00:32]} 47. Kh1 {[%emt 0:00:13]} g4 {[%emt 0:01:04]} 48. Kg2 {[%emt 0:00:44] [#]} g3 $1 {[%emt 0:00:33]} 49. Kh1 {[%emt 0:00:35]} Nd2 {[%emt 0:00:26] Weighted Error Value: White=0.35/Black=0.18 (very precise)} 0-1